bitfinex/quotes_SOLUSD_20241213
["timestamp","ask_amount","ask_price","bid_price","bid_amount"]
[1734121700062,11.1388,224.44,224.31,20.0]
[1734121700261,23.776884,224.43,224.28,8.0116]
[1734121700560,23.776884,224.43,224.3,8.45217478]
[1734121701283,11.1398,224.42,224.31,8.45217478]
[1734121703264,11.1398,224.42,224.28,8.0116]
[1734121703559,11.1408,224.4,224.34,8.45217478]
[1734121704641,11.1408,224.4,224.35,8.45217478]
[1734121705153,11.1408,224.4,224.34,8.45217478]
[1734121705543,11.1408,224.4,224.33,8.45217478]
[1734121705739,20.0,224.42,224.31,0.12549]
[1734121705961,23.776884,224.44,224.32,8.45217478]
[1734121706259,23.776884,224.44,224.33,8.45217478]
[1734121706846,11.1393,224.43,224.33,8.45217478]
[1734121707347,11.1393,224.43,224.34,8.45217478]
[1734121708355,23.776884,224.45,224.34,8.45217478]
[1734121709438,4.52482986,224.5,224.35,0.25098]
[1734121709643,20.0,224.46,224.36,8.45217478]
[1734121710560,20.0,224.48,224.36,8.45217478]
[1734121710765,20.0,224.46,224.36,8.45217478]
[1734121712847,11.1363,224.49,224.37,8.70315478]
[1734121713048,11.1363,224.49,224.4,8.45217478]
[1734121713471,11.1363,224.49,224.39,8.45217478]
[1734121721581,23.776884,224.52,224.42,8.45217478]
[1734121722776,11.1353,224.51,224.42,8.45217478]
[1734121723964,11.1353,224.51,224.41,8.45217478]
[1734121728475,11.1353,224.51,224.4,8.45217478]
[1734121728674,11.1353,224.51,224.42,8.45217478]
[1734121729069,11.1353,224.51,224.4,8.45217478]
[1734121729387,11.1353,224.51,224.39,8.45217478]
[1734121729588,11.1353,224.51,224.38,0.12549]
[1734121729769,23.776884,224.5,224.38,8.45217478]
[1734121730373,23.776884,224.5,224.37,8.45217478]
[1734121730574,23.776884,224.5,224.36,16.43497478]
[1734121730768,23.776884,224.46,224.3,7.9979]
[1734121730964,23.776884,224.46,224.31,8.45217478]
[1734121731168,23.776884,224.46,224.33,8.45217478]
[1734121731972,23.776884,224.44,224.33,8.45217478]
[1734121732463,23.776884,224.44,224.33,20.0]
[1734121732676,23.776884,224.44,224.32,8.45217478]
[1734121732982,11.1393,224.43,224.32,8.45217478]
[1734121733674,11.1393,224.43,224.33,20.0]
[1734121733984,11.1393,224.43,224.32,8.45217478]
[1734121735683,11.1393,224.43,224.33,8.45217478]
[1734121735884,11.1393,224.43,224.34,8.45217478]
[1734121736077,11.1393,224.43,224.31,0.25098]
[1734121736284,11.1393,224.43,224.33,8.45217478]
[1734121736470,11.1393,224.43,224.34,8.45217478]
[1734121737284,23.776884,224.46,224.35,8.45217478]
[1734121737473,23.776884,224.46,224.31,0.25098]
[1734121737671,23.776884,224.46,224.33,8.45217478]
[1734121738193,23.776884,224.46,224.34,8.45217478]
[1734121738487,23.776884,224.46,224.31,0.25098]
[1734121738488,23.776884,224.46,224.35,8.45217478]
[1734121738676,23.776884,224.46,224.34,8.45217478]
[1734121739277,11.1383,224.45,224.34,8.45217478]
[1734121740577,11.1383,224.45,224.35,8.70315478]
[1734121740785,20.0,224.45,224.38,8.45217478]
[1734121740986,11.1367,224.49,224.4,8.45217478]
[1734121741578,11.1367,224.49,224.41,8.45217478]
[1734121741777,11.1367,224.49,224.39,0.12549]
[1734121741985,11.1348,224.52,224.4,8.45217478]
[1734121742868,23.776884,224.51,224.4,8.45217478]
[1734121743075,11.1358,224.5,224.4,8.45217478]
[1734121744288,10.6358,224.5,224.4,8.45217478]
[1734121744981,10.6358,224.5,224.39,8.45217478]
[1734121746907,23.776884,224.47,224.3,7.9979]
[1734121747324,23.776884,224.47,224.33,8.45217478]
[1734121747610,20.0,224.44,224.32,8.45217478]
[1734121748813,11.1393,224.43,224.32,8.45217478]
[1734121749002,11.1393,224.43,224.33,8.45217478]
[1734121749512,11.1393,224.43,224.32,8.45217478]
[1734121751000,11.1393,224.43,224.33,8.45217478]
[1734121751717,11.1393,224.43,224.32,8.45217478]
[1734121751892,11.1393,224.43,224.31,8.45217478]
[1734121752086,11.1393,224.43,224.32,8.45217478]
[1734121754213,23.776884,224.42,224.3,7.9979]
[1734121754419,23.776884,224.42,224.31,8.45217478]
[1734121755336,11.1403,224.41,224.31,8.45217478]
[1734121756205,11.1403,224.41,224.3,7.9979]
[1734121756518,11.1403,224.41,224.29,17.62811925]
[1734121756906,23.776884,224.4,224.3,8.45217478]
[1734121761426,11.1403,224.41,224.32,8.45217478]
[1734121762696,11.1403,224.41,224.31,8.45217478]
[1734121762916,11.1403,224.41,224.3,8.45217478]
[1734121764914,11.1403,224.41,224.32,8.45217478]
[1734121765518,11.1403,224.41,224.31,8.45217478]
[1734121768325,11.1403,224.41,224.3,8.45217478]
[1734121769829,11.1403,224.41,224.29,17.62811925]
[1734121770022,11.1403,224.41,224.3,8.45217478]
[1734121772342,11.1403,224.41,224.31,8.45217478]
[1734121772720,23.776884,224.38,224.29,9.17594447]
[1734121774159,11.1403,224.41,224.33,8.45217478]
[1734121774937,11.1403,224.41,224.32,8.45217478]
[1734121775560,11.1403,224.41,224.31,8.45217478]
[1734121775875,11.1403,224.41,224.3,8.45217478]
[1734121776046,11.1403,224.41,224.31,8.45217478]
[1734121777280,11.1403,224.41,224.3,8.45217478]
[1734121779153,11.1403,224.41,224.29,15.19850877]
[1734121779376,11.1403,224.41,224.3,8.45217478]
[1734121780269,11.1403,224.41,224.29,15.19850877]
[1734121780582,11.1403,224.41,224.3,8.45217478]
[1734121782076,11.1403,224.41,224.31,8.45217478]
[1734121786567,11.1403,224.41,224.3,8.45217478]
[1734121788164,11.1403,224.41,224.31,8.45217478]
[1734121789173,11.1403,224.41,224.29,15.19850877]
[1734121789360,11.1403,224.41,224.31,8.45217478]
[1734121790383,11.1403,224.41,224.29,15.19850877]
[1734121790384,11.1403,224.41,224.32,8.45217478]
[1734121791455,11.1403,224.41,224.31,8.45217478]
[1734121792979,11.1403,224.41,224.32,8.45217478]
[1734121796278,11.1403,224.41,224.3,8.45217478]
[1734121798472,11.1403,224.41,224.32,8.45217478]
[1734121800381,0.12549,224.39,224.29,9.17594447]
[1734121800586,0.25098,224.39,224.29,9.17594447]
[1734121801083,0.12549,224.39,224.29,9.17594447]
[1734121801387,23.776884,224.38,224.29,9.17594447]
[1734121801682,34.918884,224.38,224.29,9.17594447]
[1734121803169,6.97552129,224.39,224.31,8.45217478]
[1734121803969,6.97552129,224.41,224.34,8.45217478]
[1734121804179,18.11572129,224.42,224.34,8.45217478]
[1734121805561,18.11572129,224.42,224.33,8.45217478]
[1734121805765,6.97552129,224.42,224.34,8.45217478]
[1734121805964,6.97552129,224.44,224.4,8.45217478]
[1734121806199,6.97552129,224.46,224.41,8.45217478]
[1734121806376,6.97552129,224.47,224.41,8.45217478]
[1734121806703,18.11282129,224.47,224.34,7.5994643]
[1734121806901,0.12549,224.46,224.33,6.2124]
[1734121807105,18.11282129,224.47,224.34,8.45217478]
[1734121807268,23.776884,224.44,224.35,8.45217478]
[1734121807668,23.776884,224.44,224.34,8.45217478]
[1734121808087,34.915784,224.44,224.34,8.45217478]
[1734121808273,34.915784,224.44,224.33,14.66457478]
[1734121808573,34.915784,224.44,224.33,8.45217478]
[1734121808773,20.0,224.41,224.32,8.45217478]
[1734121809192,20.0,224.41,224.33,8.45217478]
[1734121810395,20.0,224.41,224.34,8.45217478]
[1734121810903,34.915784,224.44,224.35,8.45217478]
[1734121811671,34.915784,224.44,224.34,8.45217478]
[1734121812003,34.915784,224.44,224.33,8.45217478]
[1734121813575,11.1389,224.44,224.35,8.45217478]
[1734121814274,11.1389,224.44,224.36,8.45217478]
[1734121814808,11.1389,224.44,224.35,8.45217478]
[1734121815586,11.1389,224.44,224.34,8.45217478]
[1734121819210,11.1389,224.44,224.33,8.45217478]
[1734121819792,11.1389,224.44,224.32,28.45217478]
[1734121820009,11.1389,224.44,224.34,8.45217478]
[1734121821926,11.1389,224.44,224.32,20.0]
[1734121822220,11.1398,224.42,224.32,20.0]
[1734121823121,11.1398,224.42,224.33,20.0]
[1734121823920,11.1398,224.42,224.29,10.78984447]
[1734121823921,23.776884,224.41,224.29,10.78984447]
[1734121824216,23.776884,224.41,224.29,9.17594447]
[1734121824696,11.1398,224.42,224.29,17.62811925]
[1734121825522,11.1398,224.42,224.29,9.17594447]
[1734121826029,18.11532129,224.42,224.29,9.17594447]
[1734121826811,11.1408,224.4,224.29,9.17594447]
[1734121827508,11.1408,224.4,224.29,17.62811925]
[1734121827831,11.1408,224.4,224.31,8.45217478]
[1734121828437,18.11482129,224.44,224.34,8.45217478]
[1734121828641,11.1393,224.44,224.34,8.45217478]
[1734121829019,11.1393,224.44,224.33,8.45217478]
[1734121832636,11.1393,224.44,224.34,8.45217478]
[1734121836041,11.1393,224.44,224.33,8.45217478]
[1734121838253,6.97552129,224.46,224.36,8.45217478]
[1734121839742,6.97552129,224.46,224.38,8.45217478]
[1734121840046,6.97552129,224.46,224.34,0.66845871]
[1734121840047,6.97552129,224.47,224.39,20.66828545]
[1734121840238,6.97552129,224.47,224.39,20.0]
[1734121840928,6.97552129,224.47,224.39,28.45217478]
[1734121841329,6.97552129,224.47,224.39,20.0]
[1734121842154,11.1378,224.46,224.36,15.02987478]
[1734121842442,11.1378,224.46,224.36,6.5777]
[1734121842747,18.11332129,224.46,224.33,8.45217478]
[1734121843242,18.11332129,224.46,224.34,8.45217478]
[1734121845332,18.11332129,224.46,224.32,14.47473908]
[1734121845535,24.027864,224.45,224.32,6.0225643]
[1734121845852,24.027864,224.45,224.32,14.47473908]
[1734121845853,24.555164,224.45,224.32,14.47473908]
[1734121846953,11.1388,224.44,224.32,14.47473908]
[1734121847761,11.1388,224.44,224.33,8.45217478]
[1734121847919,11.1388,224.44,224.35,8.45217478]
[1734121848552,11.1388,224.44,224.34,8.45217478]
[1734121849257,11.1388,224.44,224.36,8.45217478]
[1734121849630,11.1388,224.44,224.35,8.45217478]
[1734121851948,11.1388,224.44,224.34,14.47473908]
[1734121852149,11.1388,224.44,224.34,28.45217478]
[1734121852357,11.1388,224.44,224.31,7.8621]
[1734121852662,11.1398,224.42,224.34,8.45217478]
[1734121853072,18.11372129,224.46,224.35,8.45217478]
[1734121853248,11.1382,224.46,224.35,8.45217478]
[1734121853450,0.12549,224.45,224.32,8.45217478]
[1734121853937,0.12549,224.45,224.33,8.45217478]
[1734121854868,0.12549,224.45,224.34,8.45217478]
[1734121859149,11.1388,224.44,224.34,8.45217478]
[1734121859352,11.1388,224.44,224.33,8.45217478]
[1734121859977,11.1388,224.44,224.32,8.45217478]
[1734121860676,24.027864,224.41,224.28,15.3182555]
[1734121860971,24.027864,224.41,224.28,23.77043028]
[1734121861678,24.027864,224.39,224.28,15.3182555]
[1734121861876,6.97552129,224.38,224.28,15.3182555]
[1734121862176,24.027864,224.37,224.28,9.2956912]
[1734121862683,0.25098,224.37,224.28,9.2956912]
[1734121863060,11.1428,224.36,224.28,9.2956912]
[1734121867365,0.25098,224.37,224.28,9.2956912]
[1734121867366,11.1437,224.34,224.28,9.2956912]
[1734121870588,11.1447,224.32,224.24,8.45217478]
[1734121870888,11.1447,224.32,224.23,8.45217478]
[1734121871472,20.0,224.33,224.23,8.45217478]
[1734121871676,0.25098,224.33,224.23,8.45217478]
[1734121872077,0.12549,224.3,224.22,6.0225643]
[1734121872756,0.12549,224.3,224.22,8.45217478]
[1734121873783,11.27159,224.3,224.21,8.45217478]
[1734121873995,0.12549,224.28,224.2,17.73988369]
[1734121874659,11.1472,224.27,224.2,17.73988369]
[1734121875287,0.12549,224.26,224.2,9.28770891]
[1734121889364,0.12549,224.26,224.2,17.73988369]
[1734121889564,0.12549,224.26,224.21,8.45217478]
[1734121889772,22.2866,224.35,224.2,9.28770891]
[1734121889773,11.1458,224.3,224.25,8.45217478]
[1734121889993,11.1443,224.33,224.25,8.45217478]
[1734121893278,11.1443,224.33,224.24,8.45217478]
[1734121894584,11.1452,224.31,224.24,8.45217478]
[1734121894777,23.902374,224.3,224.2,17.73988369]
[1734121895266,23.902374,224.3,224.21,8.45217478]
[1734121895467,23.902374,224.3,224.22,8.45217478]
[1734121896576,23.902374,224.3,224.23,8.45217478]
[1734121897675,23.902374,224.3,224.2,9.28770891]
[1734121897880,11.1462,224.29,224.21,8.45217478]
[1734121898886,11.1462,224.29,224.22,8.45217478]
[1734121909190,11.1462,224.29,224.21,8.45217478]
[1734121909783,24.027864,224.28,224.2,9.28770891]
[1734121910195,24.027864,224.28,224.2,17.73988369]
[1734121911204,24.027864,224.28,224.2,9.28770891]
[1734121911424,11.1462,224.29,224.23,8.45217478]
[1734121911590,23.776884,224.31,224.24,8.45217478]
[1734121911789,23.776884,224.31,224.23,8.45217478]
[1734121913098,23.776884,224.31,224.22,8.45217478]
[1734121913692,23.776884,224.31,224.24,8.45217478]
[1734121913887,23.776884,224.31,224.23,8.45217478]
[1734121918627,11.1448,224.32,224.27,8.45217478]
[1734121919598,11.1448,224.32,224.26,8.45217478]
[1734121919917,11.1448,224.32,224.27,8.45217478]
[1734121920298,11.1448,224.32,224.26,8.45217478]
[1734121922725,11.1448,224.32,224.25,8.45217478]
[1734121924319,11.1448,224.32,224.21,6.96898653]
[1734121924723,11.1448,224.32,224.24,8.45217478]
[1734121925527,11.1457,224.3,224.21,9.97637478]
[1734121925827,11.1457,224.3,224.23,8.45217478]
[1734121926027,18.11962129,224.34,224.25,8.45217478]
[1734121926215,18.11962129,224.34,224.24,8.45217478]
[1734121926419,18.11962129,224.34,224.23,8.45217478]
[1734121927016,23.776884,224.33,224.23,8.45217478]
[1734121927716,23.776884,224.31,224.22,8.45217478]
[1734121927916,23.776884,224.31,224.21,8.45217478]
[1734121928521,23.776884,224.31,224.22,8.45217478]
[1734121928722,23.902374,224.33,224.22,8.45217478]
[1734121928919,35.046574,224.33,224.22,8.45217478]
[1734121929529,35.046574,224.33,224.21,8.45217478]
[1734121929923,35.046574,224.33,224.23,8.45217478]
[1734121930315,34.921084,224.33,224.24,8.45217478]
[1734121930521,34.921084,224.33,224.25,8.45217478]
[1734121933111,34.921084,224.33,224.24,8.45217478]
[1734121933615,41.89660529,224.33,224.24,8.45217478]
[1734121935017,11.1452,224.31,224.2,9.28770891]
[1734121935333,23.776884,224.3,224.22,8.45217478]
[1734121936231,23.776884,224.3,224.21,8.45217478]
[1734121936416,23.776884,224.3,224.22,8.45217478]
[1734121937530,23.776884,224.3,224.21,8.45217478]
[1734121939438,18.12072129,224.31,224.24,8.45217478]
[1734121940230,11.1452,224.31,224.23,8.45217478]
[1734121940409,23.776884,224.3,224.18,6.99512998]
[1734121940608,23.776884,224.3,224.18,6.3262]
[1734121940846,23.776884,224.3,224.2,8.45217478]
[1734121943629,11.1462,224.29,224.2,8.45217478]
[1734121943827,11.1462,224.29,224.19,8.45217478]
[1734121943828,23.776884,224.28,224.19,8.45217478]
[1734121946139,24.027864,224.3,224.17,9.78912565]
[1734121946364,0.12549,224.27,224.17,9.78912565]
[1734121946648,23.902374,224.24,224.11,8.45217478]
[1734121946811,0.12549,224.23,224.11,8.45217478]
[1734121947019,24.027864,224.2,224.07,22.95229585]
[1734121947323,24.027864,224.2,224.08,30.0]
[1734121947733,24.027864,224.2,224.07,17.8759841]
[1734121948330,23.902374,224.18,224.07,17.8759841]
[1734121948934,23.902374,224.18,224.09,8.45217478]
[1734121949138,23.776884,224.18,224.1,8.45217478]
[1734121949540,23.776884,224.18,224.09,8.45217478]
[1734121950442,23.776884,224.18,224.08,8.45217478]
[1734121950624,23.776884,224.18,224.07,17.8759841]
[1734121951939,11.27769,224.17,224.07,9.42380932]
[1734121952149,23.776884,224.16,224.07,9.42380932]
[1734121956343,23.776884,224.14,224.07,9.42380932]
[1734121957149,0.25098,224.13,224.07,9.42380932]
[1734121957329,0.25098,224.13,223.99,8.45217478]
[1734121957528,0.25098,224.13,224.0,8.45217478]
[1734121958265,0.12549,224.11,224.0,8.45217478]
[1734121958428,23.902374,224.11,223.97,10.0]
[1734121958634,23.902374,224.11,223.99,8.45217478]
[1734121959232,23.902374,224.11,224.01,8.45217478]
[1734121959629,11.1547,224.12,224.01,8.45217478]
[1734121959630,23.776884,224.09,224.01,8.45217478]
[1734121960347,23.776884,224.09,223.98,8.45217478]
[1734121960728,23.776884,224.09,223.99,8.45217478]
[1734121960929,23.776884,224.09,223.98,8.45217478]
[1734121961689,23.776884,224.09,223.97,18.45217478]
[1734121961690,23.776884,224.07,223.97,18.45217478]
[1734121962533,0.12549,224.11,224.0,8.45217478]
[1734121962741,0.12549,224.11,223.97,10.0]
[1734121962742,23.776884,224.11,224.01,8.45217478]
[1734121963467,23.776884,224.11,224.0,28.45217478]
[1734121965548,23.776884,224.11,224.0,20.0]
[1734121965953,23.776884,224.11,224.0,28.45217478]
[1734121966349,23.776884,224.11,224.01,8.45217478]
[1734121966555,23.776884,224.11,223.97,10.0]
[1734121966781,3.23942943,224.2,223.97,10.0]
[1734121966782,23.902374,224.07,223.97,10.0]
[1734121966988,0.12549,224.06,223.97,10.0]
[1734121968269,24.027864,224.04,223.97,10.0]
[1734121969276,11.1592,224.03,223.97,10.0]
[1734121969587,23.902374,224.02,223.97,10.0]
[1734121970380,0.12549,224.01,223.97,10.0]
[1734121973962,23.776884,223.98,223.97,10.0]
[1734121974769,23.902374,223.98,223.97,10.0]
[1734121979902,23.776884,223.98,223.97,10.0]
[1734121983363,23.902374,223.98,223.97,10.0]
[1734121983563,24.027864,223.98,223.97,10.0]
[1734121984961,0.12549,223.97,223.9,0.5274509]
[1734121985166,24.027864,223.94,223.9,0.5274509]
[1734121985385,20.12549,223.91,223.9,0.5274509]
[1734121985568,44.027864,223.91,223.9,0.5274509]
[1734121986603,55.193064,223.91,223.9,0.5274509]
[1734121987914,43.776884,223.91,223.9,0.5274509]
[1734121991787,11.1607,224.0,223.9,0.5274509]
[1734121992866,0.12549,223.99,223.9,0.5274509]
[1734121993474,24.027864,223.99,223.9,0.5274509]
[1734121996077,0.12549,223.97,223.9,0.5274509]
[1734121996394,24.027864,223.97,223.9,0.5274509]
[1734122002403,23.902374,223.97,223.9,0.5274509]
[1734122009278,0.12549,223.96,223.9,0.5274509]
[1734122013216,23.776884,223.97,223.9,0.5274509]
[1734122013519,23.776884,223.97,223.9,2.1552509]
[1734122020122,0.25098,223.94,223.9,2.1552509]
[1734122020290,23.776884,223.91,223.9,0.5274509]
[1734122020891,23.902374,223.91,223.9,0.5274509]
[1734122022499,23.776884,223.91,223.9,0.5274509]
[1734122024395,24.027864,223.91,223.9,0.5274509]
[1734122026716,14.027864,223.91,223.9,0.5274509]
[1734122033749,31.1649,223.92,223.9,0.5274509]
[1734122034024,6.97552129,223.95,223.9,0.5274509]
[1734122034204,15.76711797,223.97,223.9,0.5274509]
[1734122034205,11.1628,223.96,223.9,0.5274509]
[1734122035138,12.89554222,223.99,223.9,0.5274509]
[1734122035613,0.12549,223.98,223.9,0.5274509]
[1734122035805,24.027864,223.98,223.9,0.5274509]
[1734122036143,20.0,223.95,223.9,0.5274509]
[1734122038932,11.1626,223.97,223.91,1.5049]
[1734122047850,6.97552129,223.99,223.92,6.2005]
[1734122048162,27.90208518,224.03,223.92,6.2005]
[1734122048163,6.97552129,224.02,223.92,6.2005]
[1734122048338,18.13472129,224.03,223.92,6.2005]
[1734122049035,11.1592,224.03,223.92,6.2005]
[1734122049463,20.0,224.0,223.92,6.2005]
[1734122051237,31.04309367,224.0,223.92,6.2005]
[1734122051556,0.25098,223.99,223.92,6.2005]
[1734122053256,20.25098,223.99,223.92,6.2005]
[1734122056335,11.1617,223.98,223.92,6.2005]
[1734122059839,11.4299,223.98,223.92,6.2005]
[1734122060451,11.1627,223.96,223.92,6.2005]
[1734122069573,20.0,223.92,223.91,1.5049]
[1734122069875,20.0,223.91,223.9,0.5274509]
[1734122070857,31.1652,223.91,223.9,0.5274509]
[1734122072963,55.193064,223.91,223.9,0.5274509]
[1734122076083,1.77601785,223.92,223.9,0.5274509]
[1734122076084,20.0,223.92,223.9,0.5274509]
[1734122076305,11.1632,223.95,223.9,0.5274509]
[1734122080877,11.4314,223.95,223.9,0.5274509]
[1734122085495,18.40692129,223.95,223.9,0.5274509]
[1734122085695,11.4314,223.95,223.9,0.5274509]
[1734122086491,0.2682,223.95,223.9,0.5274509]
[1734122086793,0.2682,223.95,223.91,7.8291]
[1734122095784,11.1637,223.94,223.91,7.8291]
[1734122101616,23.902374,223.93,223.9,0.5274509]
[1734122102480,43.902374,223.91,223.9,0.5274509]
[1734122104704,44.027864,223.91,223.9,5.09e-05]
[1734122104980,20.0,223.91,223.9,5.09e-05]
[1734122106802,44.027864,223.91,223.9,5.09e-05]
[1734122111484,20.0,223.91,223.9,5.09e-05]
[1734122112796,11.1647,223.92,223.9,5.09e-05]
[1734122114500,11.1647,223.92,223.76,6.7035]
[1734122114501,0.12549,223.87,223.76,1.6365]
[1734122114710,20.0,223.82,223.76,1.6365]
[1734122115614,20.0,223.84,223.76,10.08867478]
[1734122116110,20.0,223.84,223.77,8.45217478]
[1734122116315,20.0,223.84,223.76,10.08867478]
[1734122116517,20.0,223.84,223.76,1.6365]
[1734122116892,11.1671,223.87,223.79,8.45217478]
[1734122117191,11.1671,223.87,223.77,6.0062]
[1734122117389,11.1671,223.87,223.77,14.45837478]
[1734122117601,11.1671,223.87,223.78,8.45217478]
[1734122117812,11.1671,223.87,223.79,8.45217478]
[1734122120105,0.12549,223.91,223.78,8.45217478]
[1734122120296,20.0,223.88,223.78,8.45217478]
[1734122121218,35.193064,223.91,223.83,6.2432]
[1734122121219,11.1652,223.91,223.83,6.2432]
[1734122124212,20.0,223.88,223.83,6.2432]
[1734122129314,31.1669,223.88,223.82,1.6396]
[1734122130530,23.776884,223.87,223.82,1.6396]
[1734122130739,11.1676,223.86,223.82,1.6396]
[1734122131405,23.902374,223.85,223.78,6.4195]
[1734122131638,20.0,223.82,223.77,1.5979]
[1734122132627,11.1701,223.81,223.77,1.5979]
[1734122132828,24.027864,223.8,223.73,6.2289]
[1734122133347,20.0,223.77,223.72,1.5513]
[1734122134440,31.1726,223.77,223.72,1.5513]
[1734122136265,11.1731,223.75,223.68,6.6757509]
[1734122137173,20.0,223.72,223.68,6.6757509]
[1734122137338,11.1741,223.73,223.68,6.6757509]
[1734122138774,23.902374,223.72,223.68,0.5274509]
[1734122138961,20.0,223.69,223.68,0.5274509]
[1734122144481,11.1737,223.74,223.68,0.5274509]
[1734122144784,2.67384794,223.77,223.68,0.5274509]
[1734122145945,2.94204794,223.77,223.68,0.5274509]
[1734122146661,20.0,223.75,223.68,0.5274509]
[1734122148983,23.902374,223.74,223.68,0.5274509]
[1734122149663,20.0,223.71,223.68,0.5274509]
[1734122152274,20.0,223.69,223.68,0.5274509]
[1734122156981,31.1761,223.69,223.68,0.5274509]
[1734122157186,55.203964,223.69,223.68,5.09e-05]
[1734122159796,55.078474,223.69,223.68,5.09e-05]
[1734122159956,31.1761,223.69,223.68,5.09e-05]
[1734122160156,20.0,223.69,223.68,5.09e-05]
[1734122162375,44.027864,223.69,223.68,5.09e-05]
[1734122168106,44.296064,223.69,223.68,5.09e-05]
[1734122168303,20.2682,223.69,223.68,5.09e-05]
[1734122179876,0.2682,223.69,223.68,5.09e-05]
[1734122182379,9.63888613,223.79,223.68,5.09e-05]
[1734122182380,6.97552129,223.79,223.68,5.09e-05]
[1734122182589,6.97552129,223.82,223.69,6.1266]
[1734122182779,0.12549,223.81,223.69,6.1266]
[1734122183317,11.29599,223.81,223.69,6.1266]
[1734122183684,11.1711,223.79,223.69,6.1266]
[1734122185796,11.1711,223.79,223.7,1.5036]
[1734122186194,20.0,223.79,223.7,1.5036]
[1734122186990,20.0,223.8,223.7,1.5036]
[1734122187183,20.0,223.79,223.7,1.5036]
[1734122189009,20.0,223.8,223.7,1.5036]
[1734122194212,11.1711,223.79,223.7,1.5036]
[1734122195903,20.0,223.76,223.7,1.5036]
[1734122196786,11.1731,223.75,223.7,1.5036]
[1734122197590,11.1731,223.75,223.69,6.1266]
[1734122197591,20.0,223.72,223.69,6.1266]
[1734122198709,20.0,223.73,223.69,6.1266]
[1734122200011,20.0,223.7,223.69,6.1266]
[1734122202815,31.1761,223.69,223.68,5.09e-05]
[1734122217406,20.0,223.69,223.68,5.09e-05]
[1734122217603,11.1746,223.73,223.68,5.09e-05]
[1734122217802,11.1727,223.76,223.68,5.09e-05]
[1734122218725,11.1711,223.8,223.69,6.0589]
[1734122218907,11.1711,223.8,223.7,1.5622]
[1734122221125,20.0,223.77,223.7,1.5622]
[1734122231458,11.1711,223.8,223.7,1.5622]
[1734122231857,20.0,223.77,223.7,1.5622]
[1734122232526,20.0,223.8,223.7,1.5622]
[1734122233731,11.1711,223.79,223.7,1.5622]
[1734122236430,20.0,223.76,223.7,1.5622]
[1734122237451,11.1731,223.75,223.7,1.5622]
[1734122244151,11.1746,223.73,223.7,1.5622]
[1734122246569,11.1724,223.77,223.7,1.5622]
[1734122246738,6.97552129,223.8,223.71,6.6661]
[1734122246941,41.85312777,223.85,223.71,6.6661]
[1734122246942,6.97552129,223.82,223.71,6.6661]
[1734122247142,6.97552129,223.81,223.72,2.24379865]
[1734122247338,6.97552129,223.84,223.73,6.6661]
[1734122247659,6.97552129,223.88,223.74,2.24371407]
[1734122247967,11.1665,223.89,223.75,6.6661]
[1734122248260,11.1665,223.89,223.77,1.5314]
[1734122250455,20.0,223.86,223.77,1.5314]
[1734122250661,20.0,223.85,223.77,1.5314]
[1734122251264,20.0,223.86,223.77,1.5314]
[1734122251467,20.0,223.85,223.77,1.5314]
[1734122252160,11.1686,223.84,223.77,1.5314]
[1734122252777,20.0,223.81,223.77,1.5314]
[1734122261680,31.1704,223.81,223.77,1.5314]
[1734122263476,20.0,223.8,223.77,1.5314]
[1734122264780,20.0,223.78,223.77,1.5314]
[1734122265282,20.0,223.78,223.75,6.6661]
[1734122265283,31.1716,223.78,223.75,6.6661]
[1734122268559,20.0,223.77,223.75,6.6661]
[1734122269063,20.0,223.76,223.75,6.6661]
[1734122273766,6.97552129,223.81,223.75,6.6661]
[1734122273965,20.0,223.78,223.75,6.6661]
[1734122274165,25.12114259,223.82,223.75,6.6661]
[1734122274166,11.1701,223.82,223.75,6.6661]
[1734122274391,6.97552129,223.83,223.75,6.6661]
[1734122274692,6.97552129,223.84,223.75,6.6661]
[1734122274900,6.97552129,223.83,223.75,6.6661]
[1734122275199,6.97552129,223.85,223.75,6.6661]
[1734122275374,6.97552129,223.85,223.76,1.6298]
[1734122275996,20.0,223.83,223.76,1.6298]
[1734122290912,31.1693,223.83,223.76,1.6298]